[Event "Late Titled Tuesday Blitz February 8 2022"]
[White "Sviridov, Valery"]
[Black "Kravtsiv, Martyn"]
[WhiteFideId "4120680"]
[BlackFideId "14113147"]
[WhiteElo "2454"]
[BlackElo "2694"]
[Result "1-0"]
[Round "08"]
[TimeControl "180+1"]
[Date "2022.02.08"]
[WhiteClock "0:00:14"]
[BlackClock "0:00:01"]

1. Nf3 {[%clk 0:03:00]}  d5 {[%clk 0:02:59]} 2. g3 {[%clk 0:03:00]}  c5 {[%clk 0:02:59]} 3. Bg2 {[%clk 0:03:00]}  Nf6 {[%clk 0:02:59]} 4. O-O {[%clk 0:03:01]}  Nc6 {[%clk 0:03:00]} 5. d4 {[%clk 0:03:01]}  cxd4 {[%clk 0:03:00]} 6. Nxd4 {[%clk 0:03:02]}  e5 {[%clk 0:03:00]} 7. Nxc6 {[%clk 0:03:02]}  bxc6 {[%clk 0:03:00]} 8. c4 {[%clk 0:03:03]}  Be6 {[%clk 0:03:00]} 9. Nc3 {[%clk 0:03:02]}  Rc8 {[%clk 0:02:54]} 10. cxd5 {[%clk 0:03:02]}  cxd5 {[%clk 0:02:52]} 11. Qa4+ {[%clk 0:03:02]}  Qd7 {[%clk 0:02:51]} 12. Qxd7+ {[%clk 0:03:02]}  Kxd7 {[%clk 0:02:51]} 13. Rd1 {[%clk 0:03:02]}  Bc5 {[%clk 0:02:51]} 14. Na4 {[%clk 0:02:36]}  h6 {[%clk 0:02:50]} 15. Nxc5+ {[%clk 0:02:34]}  Rxc5 {[%clk 0:02:51]} 16. b3 {[%clk 0:02:30]}  Rc2 {[%clk 0:02:45]} 17. f4 {[%clk 0:02:15]}  e4 {[%clk 0:02:08]} 18. Kf1 {[%clk 0:02:15]}  Bg4 {[%clk 0:01:50]} 19. Re1 {[%clk 0:02:14]}  Rhc8 {[%clk 0:01:35]} 20. Be3 {[%clk 0:02:12]}  a5 {[%clk 0:01:34]} 21. h3 {[%clk 0:02:08]}  Be6 {[%clk 0:01:34]} 22. g4 {[%clk 0:02:07]}  g6 {[%clk 0:01:33]} 23. Red1 {[%clk 0:02:04]}  Ke7 {[%clk 0:01:28]} 24. Bd2 {[%clk 0:02:00]}  Ra8 {[%clk 0:00:58]} 25. Ke1 {[%clk 0:01:53]}  h5 {[%clk 0:00:56]} 26. g5 {[%clk 0:01:51]}  Nd7 {[%clk 0:00:46]} 27. Rdc1 {[%clk 0:01:50]}  Rxc1+ {[%clk 0:00:44]} 28. Rxc1 {[%clk 0:01:51]}  a4 {[%clk 0:00:44]} 29. b4 {[%clk 0:01:49]}  Nb6 {[%clk 0:00:42]} 30. Be3 {[%clk 0:01:48]}  Nc4 {[%clk 0:00:41]} 31. Bc5+ {[%clk 0:01:49]}  Kd7 {[%clk 0:00:41]} 32. h4 {[%clk 0:01:47]}  Kc6 {[%clk 0:00:41]} 33. e3 {[%clk 0:01:40]}  a3 {[%clk 0:00:40]} 34. Rc3 {[%clk 0:01:40]}  Kb5 {[%clk 0:00:34]} 35. Bf1 {[%clk 0:01:40]}  Bg4 {[%clk 0:00:33]} 36. Kf2 {[%clk 0:01:40]}  Ra4 {[%clk 0:00:32]} 37. Rc1 {[%clk 0:01:33]}  Ra6 {[%clk 0:00:32]} 38. Rc2 {[%clk 0:01:33]}  Rc6 {[%clk 0:00:30]} 39. Rd2 {[%clk 0:01:29]}  Be6 {[%clk 0:00:29]} 40. Be2 {[%clk 0:01:30]}  Rc8 {[%clk 0:00:27]} 41. Rd4 {[%clk 0:01:30]}  Ra8 {[%clk 0:00:24]} 42. Kg3 {[%clk 0:01:28]}  Kc6 {[%clk 0:00:24]} 43. Rd1 {[%clk 0:01:22]}  Nb2 {[%clk 0:00:22]} 44. Rd2 {[%clk 0:01:18]}  Nc4 {[%clk 0:00:21]} 45. Rc2 {[%clk 0:01:18]}  Kb5 {[%clk 0:00:18]} 46. Rc1 {[%clk 0:01:16]}  Rc8 {[%clk 0:00:18]} 47. Rd1 {[%clk 0:01:12]}  Kc6 {[%clk 0:00:16]} 48. Bxc4 {[%clk 0:00:50]}  dxc4 {[%clk 0:00:16]} 49. Rd6+ {[%clk 0:00:51]}  Kb7 {[%clk 0:00:12]} 50. Rb6+ {[%clk 0:00:51]}  Kc7 {[%clk 0:00:12]} 51. Ra6 {[%clk 0:00:51]}  Rd8 {[%clk 0:00:11]} 52. Bd4 {[%clk 0:00:50]}  c3 {[%clk 0:00:09]} 53. Rxa3 {[%clk 0:00:50]}  Kb7 {[%clk 0:00:06]} 54. Rxc3 {[%clk 0:00:41]}  Bxa2 {[%clk 0:00:07]} 55. f5 {[%clk 0:00:42]}  Rc8 {[%clk 0:00:05]} 56. Ra3 {[%clk 0:00:40]}  Rc2 {[%clk 0:00:03]} 57. fxg6 {[%clk 0:00:34]}  fxg6 {[%clk 0:00:04]} 58. Kf4 {[%clk 0:00:33]}  Rh2 {[%clk 0:00:04]} 59. Ra7+ {[%clk 0:00:30]}  Kc6 {[%clk 0:00:03]} 60. Rg7 {[%clk 0:00:30]}  Kd5 {[%clk 0:00:04]} 61. Rxg6 {[%clk 0:00:18]}  Rxh4+ {[%clk 0:00:03]} 62. Kf5 {[%clk 0:00:19]}  Rh1 {[%clk 0:00:03]} 63. Rh6 {[%clk 0:00:19]}  Rf1+ {[%clk 0:00:03]} 64. Kg6 {[%clk 0:00:19]}  Kc6 {[%clk 0:00:01]} 65. Kxh5+ {[%clk 0:00:17]}  Kb5 {[%clk 0:00:01]} 66. Bc5 {[%clk 0:00:17]}  Bc4 {[%clk 0:00:01]} 67. Rf6 {[%clk 0:00:14]} 1-0


[Site "https://www.chess.com"]

[Event "Late Titled Tuesday Blitz February 8 2022"]
[White "Triapishko, Alexandr"]
[Black "Bortnyk, Olexandr"]
[WhiteFideId "14122286"]
[BlackFideId "14120828"]
[WhiteElo "2479"]
[BlackElo "2723"]
[Result "1-0"]
[Round "08"]
[TimeControl "180+1"]
[Date "2022.02.08"]
[WhiteClock "0:00:04"]
[BlackClock "0:00:03"]

1. Nf3 {[%clk 0:03:00]}  Nf6 {[%clk 0:02:59]} 2. g3 {[%clk 0:03:01]}  d5 {[%clk 0:03:00]} 3. Bg2 {[%clk 0:03:01]}  Bf5 {[%clk 0:03:00]} 4. O-O {[%clk 0:03:00]}  c6 {[%clk 0:03:00]} 5. c4 {[%clk 0:03:00]}  e6 {[%clk 0:03:01]} 6. d3 {[%clk 0:03:01]}  Be7 {[%clk 0:02:59]} 7. Qb3 {[%clk 0:03:01]}  Qb6 {[%clk 0:03:00]} 8. Be3 {[%clk 0:03:01]}  Qa6 {[%clk 0:02:56]} 9. Nc3 {[%clk 0:02:42]}  O-O {[%clk 0:02:54]} 10. cxd5 {[%clk 0:02:33]}  exd5 {[%clk 0:02:53]} 11. Qc2 {[%clk 0:02:32]}  Nbd7 {[%clk 0:02:52]} 12. a3 {[%clk 0:02:14]}  c5 {[%clk 0:02:40]} 13. Nh4 {[%clk 0:02:13]}  Be6 {[%clk 0:02:39]} 14. d4 {[%clk 0:02:12]}  Ng4 {[%clk 0:02:34]} 15. Nf5 {[%clk 0:02:03]}  Bf6 {[%clk 0:02:10]} 16. Nxd5 {[%clk 0:01:59]}  cxd4 {[%clk 0:02:03]} 17. Nxf6+ {[%clk 0:01:43]}  Ndxf6 {[%clk 0:01:58]} 18. Bxd4 {[%clk 0:01:40]}  Rfd8 {[%clk 0:01:35]} 19. e3 {[%clk 0:01:33]}  Qb5 {[%clk 0:01:30]} 20. Nh4 {[%clk 0:00:55]}  Rac8 {[%clk 0:01:25]} 21. Qd2 {[%clk 0:00:55]}  Ne5 {[%clk 0:01:20]} 22. Qb4 {[%clk 0:00:52]}  Qxb4 {[%clk 0:00:59]} 23. axb4 {[%clk 0:00:53]}  Nc6 {[%clk 0:00:53]} 24. Bxc6 {[%clk 0:00:38]}  Rxc6 {[%clk 0:00:51]} 25. Rxa7 {[%clk 0:00:35]}  Bh3 {[%clk 0:00:37]} 26. Rfa1 {[%clk 0:00:34]}  Ne4 {[%clk 0:00:37]} 27. Ra8 {[%clk 0:00:28]}  Rcc8 {[%clk 0:00:32]} 28. Rxc8 {[%clk 0:00:28]}  Rxc8 {[%clk 0:00:33]} 29. f3 {[%clk 0:00:20]}  Nd2 {[%clk 0:00:29]} 30. Bc3 {[%clk 0:00:19]}  Nb3 {[%clk 0:00:29]} 31. Rd1 {[%clk 0:00:19]}  g5 {[%clk 0:00:29]} 32. Ng2 {[%clk 0:00:18]}  Be6 {[%clk 0:00:18]} 33. e4 {[%clk 0:00:19]}  f5 {[%clk 0:00:16]} 34. Rd6 {[%clk 0:00:15]}  Re8 {[%clk 0:00:14]} 35. Ne3 {[%clk 0:00:10]}  fxe4 {[%clk 0:00:14]} 36. fxe4 {[%clk 0:00:11]}  Nc1 {[%clk 0:00:15]} 37. Bf6 {[%clk 0:00:08]}  h6 {[%clk 0:00:14]} 38. h4 {[%clk 0:00:07]}  gxh4 {[%clk 0:00:13]} 39. gxh4 {[%clk 0:00:07]}  Kf7 {[%clk 0:00:13]} 40. e5 {[%clk 0:00:07]}  b5 {[%clk 0:00:11]} 41. Kf2 {[%clk 0:00:06]}  Rc8 {[%clk 0:00:07]} 42. Kf3 {[%clk 0:00:05]}  h5 {[%clk 0:00:04]} 43. Rb6 {[%clk 0:00:04]}  Nd3 {[%clk 0:00:04]} 44. Rb7+ {[%clk 0:00:05]}  Kg6 {[%clk 0:00:02]} 45. Rg7+ {[%clk 0:00:05]}  Kh6 {[%clk 0:00:03]} 46. Re7 {[%clk 0:00:06]}  Bh3 {[%clk 0:00:03]} 47. Ke4 {[%clk 0:00:05]}  Nxb4 {[%clk 0:00:02]} 48. Nf5+ {[%clk 0:00:03]}  Bxf5+ {[%clk 0:00:03]} 49. Kxf5 {[%clk 0:00:04]}  Rf8 {[%clk 0:00:02]} 50. Rd7 {[%clk 0:00:03]}  Na6 {[%clk 0:00:01]} 51. Rd6 {[%clk 0:00:03]}  Nc5 {[%clk 0:00:02]} 52. e6 {[%clk 0:00:04]}  Nxe6 {[%clk 0:00:01]} 53. Rxe6 {[%clk 0:00:04]}  Rc8 {[%clk 0:00:02]} 54. Bg5+ {[%clk 0:00:03]}  Kg7 {[%clk 0:00:02]} 55. Re7+ {[%clk 0:00:03]}  Kf8 {[%clk 0:00:02]} 56. Re5 {[%clk 0:00:04]}  b4 {[%clk 0:00:02]} 57. Kg6 {[%clk 0:00:04]}  Rc6+ {[%clk 0:00:02]} 58. Kxh5 {[%clk 0:00:04]}  b3 {[%clk 0:00:03]} 59. Rb5 {[%clk 0:00:04]}  Kf7 {[%clk 0:00:03]} 60. Rxb3 {[%clk 0:00:04]}  Rc2 {[%clk 0:00:04]} 61. Rf3+ {[%clk 0:00:04]}  Ke6 {[%clk 0:00:04]} 62. b3 {[%clk 0:00:04]}  Rc8 {[%clk 0:00:03]} 63. Kg4 {[%clk 0:00:04]}  Rb8 {[%clk 0:00:02]} 64. Re3+ {[%clk 0:00:05]}  Kf7 {[%clk 0:00:03]} 65. h5 {[%clk 0:00:05]}  Rb4+ {[%clk 0:00:02]} 66. Bf4 {[%clk 0:00:06]}  Kf6 {[%clk 0:00:03]} 67. h6 {[%clk 0:00:06]}  Kg6 {[%clk 0:00:03]} 68. Rh3 {[%clk 0:00:06]}  Kh7 {[%clk 0:00:03]} 69. Kf5 {[%clk 0:00:06]}  Rb5+ {[%clk 0:00:04]} 70. Be5 {[%clk 0:00:05]}  Rb7 {[%clk 0:00:04]} 71. Ke4 {[%clk 0:00:05]}  Rb4+ {[%clk 0:00:04]} 72. Bd4 {[%clk 0:00:05]}  Rb8 {[%clk 0:00:04]} 73. Kd5 {[%clk 0:00:05]}  Rd8+ {[%clk 0:00:04]} 74. Kc4 {[%clk 0:00:06]}  Rc8+ {[%clk 0:00:04]} 75. Bc5 {[%clk 0:00:06]}  Rb8 {[%clk 0:00:03]} 76. b4 {[%clk 0:00:06]}  Rg8 {[%clk 0:00:02]} 77. b5 {[%clk 0:00:07]}  Rg4+ {[%clk 0:00:03]} 78. Bd4 {[%clk 0:00:07]}  Rg8 {[%clk 0:00:03]} 79. b6 {[%clk 0:00:07]}  Rc8+ {[%clk 0:00:02]} 80. Bc5 {[%clk 0:00:07]}  Rg8 {[%clk 0:00:01]} 81. b7 {[%clk 0:00:08]}  Rb8 {[%clk 0:00:02]} 82. Rb3 {[%clk 0:00:07]}  Kxh6 {[%clk 0:00:02]} 83. Bd6 {[%clk 0:00:08]}  Rg8 {[%clk 0:00:02]} 84. b8=Q {[%clk 0:00:08]}  Rg4+ {[%clk 0:00:02]} 85. Bf4+ {[%clk 0:00:07]}  Kg6 {[%clk 0:00:02]} 86. Rg3 {[%clk 0:00:07]}  Kh7 {[%clk 0:00:02]} 87. Qc7+ {[%clk 0:00:05]}  Kh8 {[%clk 0:00:02]} 88. Qe5+ {[%clk 0:00:05]}  Kh7 {[%clk 0:00:01]} 89. Qh5+ {[%clk 0:00:05]}  Kg7 {[%clk 0:00:02]} 90. Rxg4+ {[%clk 0:00:05]}  Kf6 {[%clk 0:00:03]} 91. Qe5+ {[%clk 0:00:04]} 1-0


[Site "https://www.chess.com"]

[Event "Late Titled Tuesday Blitz February 8 2022"]
[White "Wan, Joseph"]
[Black "Kouskoutis, Georgios-Alexandros"]
[WhiteFideId "2069890"]
[BlackFideId "4234049"]
[WhiteElo "2149"]
[BlackElo "2130"]
[Result "1/2-1/2"]
[Round "08"]
[TimeControl "180+1"]
[Date "2022.02.09"]
[WhiteClock "0:00:02"]
[BlackClock "0:00:06"]

1. d4 {[%clk 0:03:00]}  Nf6 {[%clk 0:02:59]} 2. Bf4 {[%clk 0:03:00]}  d5 {[%clk 0:02:59]} 3. e3 {[%clk 0:03:01]}  c5 {[%clk 0:02:59]} 4. Nf3 {[%clk 0:03:00]}  Nc6 {[%clk 0:02:57]} 5. Nbd2 {[%clk 0:03:00]}  Bg4 {[%clk 0:02:56]} 6. c3 {[%clk 0:02:58]}  e6 {[%clk 0:02:56]} 7. h3 {[%clk 0:02:52]}  Bh5 {[%clk 0:02:35]} 8. Be2 {[%clk 0:02:34]}  Bd6 {[%clk 0:02:13]} 9. Qb3 {[%clk 0:02:33]}  Bxf4 {[%clk 0:01:13]} 10. Qxb7 {[%clk 0:02:24]}  Rc8 {[%clk 0:00:50]} 11. exf4 {[%clk 0:02:19]}  cxd4 {[%clk 0:00:49]} 12. cxd4 {[%clk 0:02:12]}  O-O {[%clk 0:00:46]} 13. O-O {[%clk 0:02:09]}  Qd6 {[%clk 0:00:35]} 14. Rac1 {[%clk 0:02:04]}  Ne4 {[%clk 0:00:12]} 15. g4 {[%clk 0:01:46]}  Nxd2 {[%clk 0:00:11]} 16. Nxd2 {[%clk 0:01:46]}  Bg6 {[%clk 0:00:07]} 17. Nf3 {[%clk 0:01:43]}  Rc7 {[%clk 0:00:06]} 18. Qa6 {[%clk 0:01:41]}  Rfc8 {[%clk 0:00:04]} 19. Ne5 {[%clk 0:01:38]}  f6 {[%clk 0:00:05]} 20. Nxc6 {[%clk 0:01:12]}  Rxc6 {[%clk 0:00:04]} 21. Qxc8+ {[%clk 0:01:13]}  Rxc8 {[%clk 0:00:04]} 22. Rxc8+ {[%clk 0:01:14]}  Kf7 {[%clk 0:00:03]} 23. Rfc1 {[%clk 0:01:13]}  Be4 {[%clk 0:00:01]} 24. f5 {[%clk 0:00:55]}  exf5 {[%clk 0:00:01]} 25. gxf5 {[%clk 0:00:56]}  Bxf5 {[%clk 0:00:01]} 26. Bh5+ {[%clk 0:00:23]}  g6 {[%clk 0:00:02]} 27. R1c7+ {[%clk 0:00:23]}  Bd7 {[%clk 0:00:02]} 28. Bg4 {[%clk 0:00:24]}  f5 {[%clk 0:00:03]} 29. Rxa7 {[%clk 0:00:20]}  fxg4 {[%clk 0:00:02]} 30. Rcc7 {[%clk 0:00:18]}  Kf6 {[%clk 0:00:02]} 31. Rxd7 {[%clk 0:00:16]}  Qb4 {[%clk 0:00:03]} 32. Rxh7 {[%clk 0:00:12]}  Qe1+ {[%clk 0:00:03]} 33. Kg2 {[%clk 0:00:11]}  Qe4+ {[%clk 0:00:04]} 34. Kh2 {[%clk 0:00:09]}  Qf4+ {[%clk 0:00:04]} 35. Kg1 {[%clk 0:00:08]}  Qc1+ {[%clk 0:00:03]} 36. Kg2 {[%clk 0:00:08]}  gxh3+ {[%clk 0:00:04]} 37. Rxh3 {[%clk 0:00:07]}  Qxb2 {[%clk 0:00:04]} 38. Rf3+ {[%clk 0:00:05]}  Kg5 {[%clk 0:00:05]} 39. Ra4 {[%clk 0:00:04]}  Qc2 {[%clk 0:00:04]} 40. Rb4 {[%clk 0:00:03]}  Qxa2 {[%clk 0:00:03]} 41. Rb5 {[%clk 0:00:02]}  Qc4 {[%clk 0:00:03]} 42. Rbb3 {[%clk 0:00:01]}  Qxd4 {[%clk 0:00:03]} 43. Rbd3 {[%clk 0:00:02]}  Qe4 {[%clk 0:00:03]} 44. Kf1 {[%clk 0:00:02]}  Qc4 {[%clk 0:00:03]} 45. Rg3+ {[%clk 0:00:02]}  Kf6 {[%clk 0:00:04]} 46. Kg2 {[%clk 0:00:03]}  Kg7 {[%clk 0:00:04]} 47. Rgf3 {[%clk 0:00:03]}  Qe4 {[%clk 0:00:04]} 48. Kf1 {[%clk 0:00:03]}  Qg4 {[%clk 0:00:04]} 49. Rg3 {[%clk 0:00:03]}  Qe4 {[%clk 0:00:05]} 50. Rge3 {[%clk 0:00:03]}  Qc4 {[%clk 0:00:05]} 51. Kg2 {[%clk 0:00:02]}  d4 {[%clk 0:00:05]} 52. Rf3 {[%clk 0:00:02]}  Qd5 {[%clk 0:00:05]} 53. Kg3 {[%clk 0:00:02]}  Qe5+ {[%clk 0:00:06]} 54. Kg2 {[%clk 0:00:02]}  Qe4 {[%clk 0:00:06]} 55. Kf1 {[%clk 0:00:02]}  Qd5 {[%clk 0:00:05]} 56. Rg3 {[%clk 0:00:02]}  Qe4 {[%clk 0:00:05]} 57. Rgf3 {[%clk 0:00:02]}  Qd5 {[%clk 0:00:05]} 58. Rg3 {[%clk 0:00:02]}  Qe4 {[%clk 0:00:06]} 59. Rgf3 {[%clk 0:00:02]} 1/2-1/2


[Site "https://www.chess.com"]

[Event "Late Titled Tuesday Blitz February 8 2022"]
[White "Yoo, Christopher Woojin"]
[Black "Shahade, Gregory"]
[WhiteFideId "30909694"]
[BlackFideId "2009064"]
[WhiteElo "2105"]
[BlackElo "2669"]
[Result "1-0"]
[Round "08"]
[TimeControl "180+1"]
[Date "2022.02.08"]
[WhiteClock "0:02:01"]
[BlackClock "0:00:04"]

1. e4 {[%clk 0:03:00]}  e5 {[%clk 0:02:59]} 2. Nf3 {[%clk 0:03:01]}  Nc6 {[%clk 0:02:59]} 3. Bb5 {[%clk 0:03:01]}  a6 {[%clk 0:02:59]} 4. Ba4 {[%clk 0:02:59]}  Nf6 {[%clk 0:02:55]} 5. d4 {[%clk 0:02:59]}  exd4 {[%clk 0:02:55]} 6. O-O {[%clk 0:02:59]}  Be7 {[%clk 0:02:48]} 7. e5 {[%clk 0:02:59]}  Ne4 {[%clk 0:02:43]} 8. Nxd4 {[%clk 0:02:58]}  Nxd4 {[%clk 0:02:40]} 9. Qxd4 {[%clk 0:02:58]}  Nc5 {[%clk 0:02:40]} 10. Nc3 {[%clk 0:02:58]}  O-O {[%clk 0:02:38]} 11. Bb3 {[%clk 0:02:56]}  Nxb3 {[%clk 0:02:35]} 12. axb3 {[%clk 0:02:57]}  d6 {[%clk 0:02:29]} 13. Bf4 {[%clk 0:02:57]}  dxe5 {[%clk 0:02:21]} 14. Qxe5 {[%clk 0:02:58]}  Bd6 {[%clk 0:02:17]} 15. Qd4 {[%clk 0:02:58]}  Bxf4 {[%clk 0:02:16]} 16. Qxf4 {[%clk 0:02:59]}  Be6 {[%clk 0:02:11]} 17. Rfe1 {[%clk 0:02:59]}  c6 {[%clk 0:02:01]} 18. Rad1 {[%clk 0:02:58]}  Qe7 {[%clk 0:01:44]} 19. Rd3 {[%clk 0:02:51]}  Rad8 {[%clk 0:01:40]} 20. Rg3 {[%clk 0:02:50]}  Qd6 {[%clk 0:01:15]} 21. Qg5 {[%clk 0:02:44]}  Qd4 {[%clk 0:01:03]} 22. h4 {[%clk 0:02:40]}  g6 {[%clk 0:00:49]} 23. Ne4 {[%clk 0:02:29]}  f5 {[%clk 0:00:46]} 24. Rd3 {[%clk 0:02:09]}  Qb6 {[%clk 0:00:09]} 25. Nf6+ {[%clk 0:02:05]}  Kf7 {[%clk 0:00:09]} 26. Nxh7 {[%clk 0:02:02]}  Rxd3 {[%clk 0:00:09]} 27. Qf6+ {[%clk 0:02:01]}  Kg8 {[%clk 0:00:06]} 28. Qxg6+ {[%clk 0:02:01]}  Kh8 {[%clk 0:00:06]} 29. Nxf8 {[%clk 0:02:02]}  Rd2 {[%clk 0:00:04]} 30. Qh7# {[%clk 0:02:01]} 1-0


[Site "https://www.chess.com"]

[Event "Late Titled Tuesday Blitz February 8 2022"]
[White "Barp, Alberto"]
[Black "Grigorov, Grigor"]
[WhiteFideId "872555"]
[BlackFideId "2907313"]
[WhiteElo "2229"]
[BlackElo "2510"]
[Result "0-1"]
[Round "09"]
[TimeControl "180+1"]
[Date "2022.02.08"]
[WhiteClock "0:00:03"]
[BlackClock "0:00:28"]

1. d4 {[%clk 0:03:00]}  Nf6 {[%clk 0:02:59]} 2. c4 {[%clk 0:03:01]}  e6 {[%clk 0:02:59]} 3. Nf3 {[%clk 0:03:00]}  Bb4+ {[%clk 0:02:55]} 4. Bd2 {[%clk 0:03:00]}  Qe7 {[%clk 0:02:55]} 5. g3 {[%clk 0:03:00]}  Nc6 {[%clk 0:02:53]} 6. e3 {[%clk 0:02:59]}  O-O {[%clk 0:02:49]} 7. Bg2 {[%clk 0:02:59]}  Bxd2+ {[%clk 0:02:49]} 8. Qxd2 {[%clk 0:02:59]}  d6 {[%clk 0:02:49]} 9. Nc3 {[%clk 0:02:59]}  e5 {[%clk 0:02:47]} 10. O-O {[%clk 0:02:59]}  Re8 {[%clk 0:02:39]} 11. b3 {[%clk 0:02:46]}  Bg4 {[%clk 0:02:36]} 12. h3 {[%clk 0:02:32]}  Bf5 {[%clk 0:02:35]} 13. Nh4 {[%clk 0:02:26]}  Bd7 {[%clk 0:02:31]} 14. d5 {[%clk 0:02:15]}  Nb8 {[%clk 0:02:27]} 15. b4 {[%clk 0:02:10]}  a5 {[%clk 0:02:25]} 16. a3 {[%clk 0:02:09]}  Na6 {[%clk 0:02:17]} 17. Nb5 {[%clk 0:02:02]}  Red8 {[%clk 0:01:54]} 18. Rab1 {[%clk 0:01:53]}  axb4 {[%clk 0:01:45]} 19. axb4 {[%clk 0:01:52]}  g6 {[%clk 0:01:40]} 20. e4 {[%clk 0:01:46]}  Be8 {[%clk 0:01:33]} 21. Nc3 {[%clk 0:01:40]}  c5 {[%clk 0:01:27]} 22. dxc6 {[%clk 0:01:06]}  bxc6 {[%clk 0:01:27]} 23. Rfe1 {[%clk 0:00:57]}  Nc7 {[%clk 0:01:23]} 24. b5 {[%clk 0:00:48]}  Ne6 {[%clk 0:01:21]} 25. bxc6 {[%clk 0:00:42]}  Bxc6 {[%clk 0:01:20]} 26. Nd5 {[%clk 0:00:42]}  Bxd5 {[%clk 0:01:20]} 27. exd5 {[%clk 0:00:42]}  Nc5 {[%clk 0:01:19]} 28. Nf3 {[%clk 0:00:37]}  Qc7 {[%clk 0:01:15]} 29. Qh6 {[%clk 0:00:24]}  Rdb8 {[%clk 0:01:14]} 30. Rxb8+ {[%clk 0:00:23]}  Rxb8 {[%clk 0:01:14]} 31. Rc1 {[%clk 0:00:19]}  Nd3 {[%clk 0:01:07]} 32. Rc2 {[%clk 0:00:19]}  Rb1+ {[%clk 0:01:01]} 33. Kh2 {[%clk 0:00:20]}  Rb2 {[%clk 0:01:01]} 34. Qd2 {[%clk 0:00:17]}  Rxc2 {[%clk 0:00:56]} 35. Qxc2 {[%clk 0:00:18]}  Nc5 {[%clk 0:00:52]} 36. Nd2 {[%clk 0:00:17]}  Qb6 {[%clk 0:00:52]} 37. Qc3 {[%clk 0:00:17]}  h5 {[%clk 0:00:49]} 38. Qe3 {[%clk 0:00:16]}  Qb2 {[%clk 0:00:46]} 39. f4 {[%clk 0:00:15]}  e4 {[%clk 0:00:33]} 40. Kg1 {[%clk 0:00:14]}  Qc1+ {[%clk 0:00:32]} 41. Kh2 {[%clk 0:00:14]}  Nb3 {[%clk 0:00:28]} 42. Qxb3 {[%clk 0:00:06]}  Qxd2 {[%clk 0:00:29]} 43. Qb8+ {[%clk 0:00:05]}  Kg7 {[%clk 0:00:29]} 44. Qxd6 {[%clk 0:00:06]}  e3 {[%clk 0:00:29]} 45. Qe5 {[%clk 0:00:03]}  e2 {[%clk 0:00:28]} 0-1


[Site "https://www.chess.com"]

[Event "Late Titled Tuesday Blitz February 8 2022"]
[White "Bauer, Thomas"]
[Black "Djokic, Mihailo"]
[WhiteFideId "1639293"]
[BlackFideId "976440"]
[WhiteElo "2220"]
[BlackElo "2008"]
[Result "0-1"]
[Round "09"]
[TimeControl "180+1"]
[Date "2022.02.09"]
[WhiteClock "0:00:03"]
[BlackClock "0:00:58"]

1. Nf3 {[%clk 0:03:00]}  Nf6 {[%clk 0:02:45]} 2. g3 {[%clk 0:02:58]}  b6 {[%clk 0:02:45]} 3. Bg2 {[%clk 0:02:58]}  Bb7 {[%clk 0:02:45]} 4. O-O {[%clk 0:02:59]}  g6 {[%clk 0:02:46]} 5. c4 {[%clk 0:02:55]}  Bg7 {[%clk 0:02:46]} 6. d4 {[%clk 0:02:56]}  O-O {[%clk 0:02:46]} 7. Nc3 {[%clk 0:02:57]}  d6 {[%clk 0:02:46]} 8. Re1 {[%clk 0:02:52]}  Ne4 {[%clk 0:02:42]} 9. Qc2 {[%clk 0:02:43]}  Nxc3 {[%clk 0:02:41]} 10. bxc3 {[%clk 0:02:42]}  Nd7 {[%clk 0:02:40]} 11. Rd1 {[%clk 0:02:32]}  e5 {[%clk 0:02:39]} 12. dxe5 {[%clk 0:02:19]}  Nxe5 {[%clk 0:02:20]} 13. Nxe5 {[%clk 0:02:12]}  Bxg2 {[%clk 0:02:20]} 14. Nxf7 {[%clk 0:02:05]}  Qf6 {[%clk 0:02:12]} 15. Kxg2 {[%clk 0:01:54]}  Qxf7 {[%clk 0:02:10]} 16. Be3 {[%clk 0:01:23]}  Qxc4 {[%clk 0:02:08]} 17. Bd4 {[%clk 0:01:16]}  Rae8 {[%clk 0:02:04]} 18. e4 {[%clk 0:00:53]}  Qc6 {[%clk 0:01:55]} 19. Bxg7 {[%clk 0:00:47]}  Rxe4 {[%clk 0:01:51]} 20. f3 {[%clk 0:00:34]}  Re3 {[%clk 0:01:28]} 21. Bxf8 {[%clk 0:00:30]}  Qxf3+ {[%clk 0:01:28]} 22. Kg1 {[%clk 0:00:21]}  Re2 {[%clk 0:01:27]} 23. Qxe2 {[%clk 0:00:20]}  Qxe2 {[%clk 0:01:27]} 24. Rf1 {[%clk 0:00:21]}  Qe3+ {[%clk 0:01:17]} 25. Rf2 {[%clk 0:00:19]}  Qxc3 {[%clk 0:01:09]} 26. Raf1 {[%clk 0:00:19]}  Qe3 {[%clk 0:01:08]} 27. Kh1 {[%clk 0:00:16]}  Qe4+ {[%clk 0:01:07]} 28. Rf3 {[%clk 0:00:17]}  g5 {[%clk 0:01:05]} 29. Bh6 {[%clk 0:00:16]}  g4 {[%clk 0:01:04]} 30. Kg2 {[%clk 0:00:14]}  d5 {[%clk 0:01:02]} 31. h3 {[%clk 0:00:13]}  gxf3+ {[%clk 0:01:01]} 32. Rxf3 {[%clk 0:00:13]}  d4 {[%clk 0:01:01]} 33. Kf2 {[%clk 0:00:09]}  Qc2+ {[%clk 0:01:00]} 34. Kf1 {[%clk 0:00:08]}  Qb1+ {[%clk 0:00:58]} 35. Kg2 {[%clk 0:00:07]}  Qxa2+ {[%clk 0:00:59]} 36. Rf2 {[%clk 0:00:07]}  Qd5+ {[%clk 0:00:59]} 37. Kh2 {[%clk 0:00:07]}  Qd6 {[%clk 0:00:58]} 38. Bf4 {[%clk 0:00:05]}  Qc5 {[%clk 0:00:59]} 39. h4 {[%clk 0:00:03]}  d3 {[%clk 0:00:58]} 40. Rd2 {[%clk 0:00:02]}  Qc3 {[%clk 0:00:58]} 41. Kg2 {[%clk 0:00:01]}  a5 {[%clk 0:00:58]} 42. Kf3 {[%clk 0:00:02]}  a4 {[%clk 0:00:58]} 43. Ke3 {[%clk 0:00:03]}  a3 {[%clk 0:00:58]} 44. Rxd3 {[%clk 0:00:04]}  Qc5+ {[%clk 0:00:58]} 45. Kf3 {[%clk 0:00:04]}  a2 {[%clk 0:00:57]} 46. Rd8+ {[%clk 0:00:04]}  Kf7 {[%clk 0:00:57]} 47. Rd7+ {[%clk 0:00:04]}  Ke6 {[%clk 0:00:57]} 48. Rd1 {[%clk 0:00:04]}  Qc3+ {[%clk 0:00:57]} 49. Kg4 {[%clk 0:00:04]}  a1=Q {[%clk 0:00:57]} 50. Rxa1 {[%clk 0:00:03]}  Qxa1 {[%clk 0:00:58]} 0-1


[Site "https://www.chess.com"]